Cogmind - Beta 11 X10 @@@ ROGUE MODE // 2022.02.27 @ 16:57:38 Player: Terminus Result: Self-destructed Performance ------------- Evolutions (8) 4000 Regions Visited (31) 6200 Robots Destroyed (264) 1320 Value Destroyed (7978) 7978 Prototype IDs (82) 1640 Alien Tech Used (2) 400 Bonus (2744) 2744 TOTAL SCORE: 24282 Bonus ------- High Alert Combat Kills 854 Follower Combat Kills 4116 Network Hubs Disabled 200 Met Data Miner 300 Met Imprinter 300 Was Imprinted 300 Met Zhirov 300 Built Enhanced Grunts 300 Friendly Fire -3926 Cogmind --------- Core Integrity 1052/1450 Matter 272/300 Energy 375/385 System Corruption 35% Temperature Cool (0) Movement Hovering (46) Location -2/Testing Parts ------- > --- POWER (2) -------- Compact Particle Reactor Improved Quantum Reactor > --- PROPULSION (7) --- Antigrav System Antigrav System Combat Gravmag System Combat Gravmag System Combat Gravmag System Cooled Linear Gravjet > --- UTILITY (12) ----- Coolant Network Large Storage Unit Machine Analyzer Experimental Sensor Array Advanced Signal Interpreter Advanced Terrain Scan Processor Advanced Targeting Computer Experimental Targeting Computer Experimental Reaction Control System Experimental Cloaking Device Medium Regenerative Plating > --- WEAPON (2) ------- Enhanced Nova Cannon > --- INVENTORY (15) --- Quantum Reactor Quantum Reactor Light Quantum Reactor Experimental Cooling System Core Analyzer Armor Integrity Analyzer Advanced Particle Charger Warp Gun Cooled Plasma Cannon Cooled Plasma Cannon Advanced Micro-nuke Launcher Improved Plasma Cutter Core Stripper Peak State ------------ > --- POWER ------------ Compact Particle Reactor Improved Quantum Reactor > --- PROPULSION ------- Combat Gravmag System Combat Gravmag System Combat Gravmag System Combat Gravmag System Cooled Linear Gravjet Cooled Linear Gravjet Cooled Linear Gravjet > --- UTILITY ---------- Coolant Network Large Storage Unit Machine Analyzer Experimental Sensor Array Advanced Signal Interpreter Advanced Terrain Scan Processor Advanced Targeting Computer Experimental Targeting Computer Experimental Reaction Control System Experimental Cloaking Device Medium Regenerative Plating > --- WEAPON ----------- Warp Gun Enhanced Nova Cannon > --- INVENTORY -------- Quantum Reactor Quantum Reactor Combat Gravmag System Experimental Gyrokinetic Inverter Power Amplifier Armor Integrity Analyzer Advanced Particle Charger Cooled Plasma Cannon Cooled Plasma Cannon Enhanced Nova Cannon Advanced Micro-nuke Launcher Improved Plasma Cutter Core Stripper [Rating: 177] Favorites ----------- Power Heavy Deuterium Engine Engine Heavy Deuterium Engine Power Core Neutrino Core Reactor Compact Particle Reactor Propulsion Combat Gravmag System Treads Light Treads Leg Aluminum Leg Wheel Wheel Hover Unit Combat Gravmag System Utility Large Storage Unit Device Experimental Sensor Array Storage Large Storage Unit Processor Machine Analyzer Hackware Hacking Suite Protection Medium Regenerative Plating Weapon Lance Energy Gun Spread Laser Energy Cannon Cooled Particle Cannon Ballistic Gun Assault Rifle Launcher Rocket Launcher Special Weapon Improved Plasma Cutter Impact Weapon Hammer Slashing Weapon Phasing Sabre Piercing Weapon Lance Build | -11 -10 -10 -9 -9 -8 -7 -7 -7 -7 -6 -6 -6 -6 -6 -5 -5 -5 -5 -5 -5 -5 -5 -4 -4 -4 -4 -3 -3 -3 -2 -2 ------- Run | Scr Mat Min Mat Min Mat Fac Low Low Dat Pro Fac Low Low Zio Pro Fac Was Fac Ext Cet Arc Hub Fac Upp Upp Zhi Pro Res Qua Res Tes Slots Evolved 16 | . . . 2 . 2 2 . . . . 2 . . . . 2 . . . . . . 2 . . . . 2 . 2 . Power 1 | . . . . . . . . . . . . . . . . 1 . . . . . . . . . . . . . . . Propulsion 5 | . . . 1 . 1 . . . . . . . . . . 1 . . . . . . 1 . . . . . . 1 . Utility 10 | . . . 1 . 1 2 . . . . 2 . . . . . . . . . . . 1 . . . . 2 . 1 . Weapon . | . . . . . . . . . . . . . . . . . . . . . . . . . . . . . . . . Parts Attached 288 | 10 15 7 26 1 31 26 . . . . 22 2 1 6 6 22 . 38 2 6 1 3 5 . . 4 . 5 9 21 19 Power 20 | 2 1 . 3 . 2 1 . . . . 1 . . . 1 2 . 3 . 1 . . . . . 1 . . . 2 . Engine 11 | 2 1 . 3 . 2 . . . . . 1 . . . . 2 . . . . . . . . . . . . . . . Core 3 | . . . . . . 1 . . . . . . . . . . . 2 . . . . . . . . . . . . . Reactor 6 | . . . . . . . . . . . . . . . 1 . . 1 . 1 . . . . . 1 . . . 2 . Propulsion 74 | 2 7 . 10 1 15 10 . . . . 1 . 1 . . 3 . 9 1 1 . . 2 . . . . . . 7 4 Treads 32 | 2 4 . 10 1 15 . . . . . . . . . . . . . . . . . . . . . . . . . . Leg 2 | . 2 . . . . . . . . . . . . . . . . . . . . . . . . . . . . . . Wheel 1 | . 1 . . . . . . . . . . . . . . . . . . . . . . . . . . . . . . Hover 39 | . . . . . . 10 . . . . 1 . 1 . . 3 . 9 1 1 . . 2 . . . . . . 7 4 Flight . | . . . . . . . . . . . . . . . . . . . . . . . . . . . . . . . . Utility 108 | 2 2 3 3 . 8 9 . . . . 14 . . 4 1 11 . 16 1 2 1 3 2 . . 1 . 4 5 8 8 Device 62 | . . 2 1 . 4 3 . . . . 10 . . 1 1 5 . 11 1 . 1 1 1 . . 1 . 2 4 6 7 Storage 7 | 1 2 . 1 . . 1 . . . . . . . . . 2 . . . . . . . . . . . . . . . Processor 12 | . . . . . . 2 . . . . . . . 3 . 2 . . . . . . 1 . . . . . 1 2 1 Hackware 3 | . . . 1 . . 2 . . . . . . . . . . . . . . . . . . . . . . . . . Protection 24 | 1 . 1 . . 4 1 . . . . 4 . . . . 2 . 5 . 2 . 2 . . . . . 2 . . . Artifact . | . . . . . . . . . . . . . . . . . . . . . . . . . . . . . . . . Weapon 86 | 4 5 4 10 . 6 6 . . . . 6 2 . 2 4 6 . 10 . 2 . . 1 . . 2 . 1 4 4 7 Energy Gun 15 | . 1 3 6 . 2 2 . . . . . . . . . . . . . . . . . . . . . . . . 1 Energy Cannon 41 | . . . 2 . 3 3 . . . . 5 1 . 2 2 4 . 5 . 1 . . 1 . . 1 . 1 1 3 6 Ballistic Gun 7 | 4 2 . 1 . . . . . . . . . . . . . . . . . . . . . . . . . . . . Ballistic Cannon . | . . . . . . . . . . . . . . . . . . . . . . . . . . . . . . . . Launcher 10 | . 1 1 1 . 1 . . . . . . 1 . . 1 . . 2 . . . . . . . . . . 1 1 . Special Weapon 1 | . . . . . . . . . . . . . . . . . . . . 1 . . . . . . . . . . . Impact Weapon 1 | . 1 . . . . . . . . . . . . . . . . . . . . . . . . . . . . . . Slashing Weapon 1 | . . . . . . . . . . . . . . . 1 . . . . . . . . . . . . . . . . Piercing Weapon 10 | . . . . . . 1 . . . . 1 . . . . 2 . 3 . . . . . . . 1 . . 2 . . Special Melee Weapon . | . . . . . . . . . . . . . . . . . . . . . . . . . . . . . . . . Unidentified Prototypes 33 | . . 1 4 . 1 2 . . . . 2 . . . . 2 . 2 . 3 . . . . . 3 . 1 2 3 7 Parts Lost 40 | 3 4 1 1 . 3 1 . . . . 6 . 1 . . . . 3 . . . . 1 . . . . 1 . 9 6 Power 4 | 1 1 . . . . . . . . . . . . . . . . 1 . . . . . . . . . . . 1 . Propulsion 10 | . 2 . . . . 1 . . . . . . 1 . . . . . . . . . . . . . . . . 2 4 Utility 15 | . . 1 . . 1 . . . . . 5 . . . . . . 2 . . . . . . . . . 1 . 4 1 Weapon 11 | 2 1 . 1 . 2 . . . . . 1 . . . . . . . . . . . 1 . . . . . . 2 1 Highest Loss Streak 4 | 1 3 1 1 . 1 1 . . . . 3 . 1 . . . . 1 . . . . 1 . . . . 1 . 4 3 To Critical Strikes 1 | 1 . . . . . . . . . . . . . . . . . . . . . . . . . . . . . . . Average Slot Usage (%) 98 | . 95 100 99 100 99 100 100 100 100 100 98 93 93 96 100 100 100 99 100 100 100 100 99 100 100 99 100 100 99 96 93 Engine 5 | . 14 14 11 11 9 5 . . . . 5 6 6 6 . 5 5 5 5 4 . . . . . . . . . . . Core 1 | . . . . . . 1 7 7 7 7 . . . . . . . 4 5 5 5 5 5 5 5 2 . . . . . Reactor 2 | . . . . . . . . . . . . . . . 5 5 5 . . . 5 5 5 5 5 7 10 9 9 8 8 Treads 9 | . 23 28 33 33 36 . . . . . . . . . . . . . . . . . . . . . . . . . . Hover 20 | . . . . . . 30 30 30 30 30 26 26 26 26 26 29 29 29 29 29 29 29 31 31 31 31 31 28 28 30 29 Device 15 | . . 7 11 11 14 15 15 15 15 15 25 26 26 22 20 16 17 15 11 11 11 14 14 15 15 14 15 19 18 18 16 Storage 7 | . 14 14 11 11 9 7 7 7 7 7 6 6 6 6 6 5 5 5 5 5 5 5 5 5 5 5 5 4 4 4 4 Processor 14 | . . . . . . 15 15 15 15 15 13 13 13 20 26 23 23 23 23 23 23 23 21 21 21 21 21 19 23 21 21 Hackware 2 | . . . 10 11 3 6 7 7 7 7 . . . . . . . . . . . . . . . . . . . . . Protection 3 | . 14 6 . . 8 . . . . . 5 . . . . . . . 5 5 5 1 5 5 5 5 5 9 4 4 4 Energy Gun 3 | . 5 26 15 . 4 4 . . . . . . . . . . . . . . . . . . . . . . . . 3 Energy Cannon 6 | . . . 6 22 13 3 7 7 7 7 8 12 13 11 12 9 5 5 5 3 5 5 4 5 5 5 5 4 3 3 4 Piercing Weapon 2 | . . . . . . 5 7 7 7 7 3 . . . . 1 5 4 5 5 5 5 5 5 5 4 5 4 4 3 . Naked Turns . | . . . . . . . . . . . . . . . . . . . . . . . . . . . . . . . . Heaviest Build 93 | 14 31 34 57 57 68 35 29 29 29 29 50 43 43 43 44 74 62 72 67 68 68 74 69 69 69 73 73 79 78 93 84 Greatest Support 119 | 40 40 40 60 60 83 48 48 48 48 48 50 50 50 48 48 66 66 70 67 70 70 70 81 81 81 81 81 81 81 119 98 Greatest Overweight (x) 2 | 2 2 . . . 1 . . . . . 1 . 1 . . 1 . 1 . . . 1 . . . . . . . 1 1 Average Overweight (x) . | . . . . . . . . . . . . . . . . . . . . . . . . . . . . . . . . Largest Inventory Capacity 20 | 8 15 15 20 20 20 20 10 10 10 10 10 10 10 10 10 15 15 15 15 15 15 15 15 15 15 15 15 15 15 15 15 Average Capacity 13 | 7 14 15 17 20 20 10 10 10 10 10 10 10 10 10 10 10 15 15 15 15 15 15 15 15 15 15 15 15 15 15 15 Most Carried 20 | 4 15 15 20 20 20 19 10 10 10 10 10 9 9 10 10 12 13 15 15 15 15 15 15 15 15 15 15 15 15 15 15 Average Carried 12 | 2 8 13 17 20 19 9 10 10 10 10 9 8 8 9 9 9 12 14 14 14 15 15 13 15 15 14 15 14 14 14 13 Final Capacity 20 | 8 15 15 20 20 20 10 10 10 10 10 10 10 10 10 10 15 15 15 15 15 15 15 15 15 15 15 15 15 15 15 15 Final Carried 20 | 4 15 15 20 20 20 10 10 10 10 10 8 9 9 10 10 11 13 14 15 15 15 15 15 15 15 15 15 15 15 10 14 Class Distribution -------------------- 31% | Machinist-Scout 26% | Scavenger-Mutant 13% | Machinist-Mutant 12% | Mutant 7% | Commander-Scout 4% | Scout Dominant Class ---------------- Scavenger-Mutant | -10/Materials Scavenger-Mutant | -10/Mines Scavenger-Mutant | -9/Materials Scavenger-Mutant | -9/Mines Scavenger-Mutant | -8/Materials Mutant | -7/Factory Machinist-Mutant | -7/Lower Caves Machinist-Mutant | -7/Lower Caves Machinist-Mutant | -7/Data Miner Machinist-Mutant | -6/Proximity Caves Machinist-Mutant | -6/Factory Machinist-Mutant | -6/Lower Caves Machinist-Mutant | -6/Lower Caves Machinist-Scout | -6/Zion Machinist-Scout | -5/Proximity Caves Machinist-Scout | -5/Factory Machinist-Scout | -5/Waste Machinist-Scout | -5/Factory Machinist-Scout | -5/Extension Commander-Scout | -5/Cetus Commander-Scout | -5/Archives Commander-Scout | -5/Hub_04(d) Machinist-Scout | -4/Factory Machinist-Scout | -4/Upper Caves Machinist-Scout | -4/Upper Caves Machinist-Scout | -4/Zhirov Machinist-Scout | -3/Proximity Caves Machinist-Scout | -3/Research Machinist-Scout | -3/Quarantine Machinist-Scout | -2/Research Scout | -2/Testing Resources | -11 -10 -10 -9 -9 -8 -7 -7 -7 -7 -6 -6 -6 -6 -6 -5 -5 -5 -5 -5 -5 -5 -5 -4 -4 -4 -4 -3 -3 -3 -2 -2 ----------- Run | Scr Mat Min Mat Min Mat Fac Low Low Dat Pro Fac Low Low Zio Pro Fac Was Fac Ext Cet Arc Hub Fac Upp Upp Zhi Pro Res Qua Res Tes Matter Collected 3736 | 549 205 115 311 25 336 214 41 . . . 200 68 32 58 136 190 30 371 63 30 76 10 75 . . . . . 162 184 255 Remotely . | . . . . . . . . . . . . . . . . . . . . . . . . . . . . . . . . Salvage Created 11670 | 194 572 65 1458 338 2152 211 51 . . 41 1105 143 71 . 681 736 . 946 471 164 . 313 476 . 75 . . . 23 1038 346 Parts 578 | . 36 6 84 15 114 22 1 . . 5 43 7 2 . 24 37 . 46 14 17 . 14 11 . . . . . 2 59 19 Haulers Intercepted 36 | . 2 . 6 . 5 1 . . . . 5 . . . 1 3 . 4 . . . 2 4 . . . . . . 2 1 Recyclers Shooed 7 | . . . 2 . . 1 . . . . 1 . . . . . . 1 1 . . . . . . . . . . 1 . Parts Field Recycled . | . . . . . . . . . . . . . . . . . . . . . . . . . . . . . . . . Retrieved Matter . | . . . . . . . . . . . . . . . . . . . . . . . . . . . . . . . . Parts Self-Destructed 53 | . . . . . . . 3 5 . 5 . 6 2 . 30 . . . . . . . . . 2 . . . . . . Prevented 9 | . . . . . . . . . . . . . . . . . . . . . . . . . 6 . 3 . . . . Kills | -11 -10 -10 -9 -9 -8 -7 -7 -7 -7 -6 -6 -6 -6 -6 -5 -5 -5 -5 -5 -5 -5 -5 -4 -4 -4 -4 -3 -3 -3 -2 -2 ------- Run | Scr Mat Min Mat Min Mat Fac Low Low Dat Pro Fac Low Low Zio Pro Fac Was Fac Ext Cet Arc Hub Fac Upp Upp Zhi Pro Res Qua Res Tes Combat Hostiles Destroyed 172 | 16 11 8 30 7 35 3 . . . 1 8 5 1 . 10 2 . 16 2 1 . . 1 . . . . . . 13 2 Melee 3 | . 1 . . . . . . . . . 1 . . . . . . . 1 . . . . . . . . . . . . Guns 53 | 16 7 . 22 . 8 . . . . . . . . . . . . . . . . . . . . . . . . . . Cannons 59 | . . . 4 7 17 . . . . 1 4 2 1 . 4 2 . 5 1 . . . 1 . . . . . . 8 2 AOE 49 | . 3 8 3 . 4 3 . . . . 3 3 . . 6 . . 11 . . . . . . . . . . . 5 . Classes Destroyed 18 | 1 8 1 1 1 1 . 1 . . 1 1 . . . 2 . . . . . . . . . . . . . . . . Worker 21 | . 1 1 . . 6 3 . . . . 3 . . . . 1 . 2 . . . 2 1 . . . . . 1 . . Builder 15 | . 1 . 2 . 3 1 . . . . . . . . . . . . 2 . . 2 1 . . . . . . 1 2 Tunneler 1 | . . 1 . . . . . . . . . . . . . . . . . . . . . . . . . . . . . Hauler 36 | . 2 . 6 . 5 1 . . . . 5 . . . 1 3 . 4 . . . 2 4 . . . . . . 2 1 Recycler 17 | . 2 . 3 . 4 1 . . . . 1 . . . . 2 . 1 2 . . . . . . . . . . 1 . Mechanic 2 | . . . . . . . . . . . 1 . . . 1 . . . . . . . . . . . . . . . . Operator 4 | . 1 . 1 . 1 1 . . . . . . . . . . . . . . . . . . . . . . . . . Watcher 18 | . 1 . 4 . 4 1 . . . . 2 . . . . 2 . . . . . 1 . . . . . . . 2 1 Swarmer 44 | . 6 . 4 . 10 3 . . . . 3 3 . . . . . 10 . . . . . . . . . . . 5 . Grunt 56 | . 5 . 18 6 16 . . . . . 4 1 . . 5 . . 1 . . . . . . . . . . . . . Brawler 1 | . . . . 1 . . . . . . . . . . . . . . . . . . . . . . . . . . . Duelist 5 | . . . . . . . . . . . . . . . 4 . . . . . . . . . . . . . . 1 . Sentry 21 | . . . 8 . 7 . . . . . . . 1 . . 1 . 1 2 . . . 1 . . . . . . . . Hunter 6 | . . . . . 2 . . . . . . . . . 1 . . . . . . . . . . . . . . 1 2 Programmer 14 | . . . . . . . . . . 1 1 1 . . . 1 . 4 . . . . . . . . . . . 6 . Cetus Guard 1 | . . . . . . . . . . . . . . . . . . . . 1 . . . . . . . . . . . Samaritan 1 | . . . . . . . 1 . . . . . . . . . . . . . . . . . . . . . . . . Assembled 24 | 16 . 8 . . . . . . . . . . . . . . . . . . . . . . . . . . . . . Mutant 1 | . . . . . . . . . . . . . . . 1 . . . . . . . . . . . . . . . . Best Kill Streak 8 | 5 6 8 5 3 7 7 . . . 1 4 3 1 . 7 2 . 5 1 1 . 5 2 . . . . . 1 5 2 Combat Bots Only 8 | 5 4 8 3 3 4 3 . . . 1 4 3 1 . 6 1 . 5 1 1 . . 1 . . . . . . 5 1 Max Kills in Single Turn 6 | 2 3 3 3 1 3 6 1 . . 1 3 2 1 . 2 1 . 5 1 1 . 5 1 . . . . . 1 4 1 Gunslinging 1 | 1 . . . . . . . . . . . . . . . . . . . . . . . . . . . . . . . Exploded 5 | . 3 3 3 . 3 3 . . . . 3 2 . . 2 . . 5 . . . . . . . . . . . 4 . Melee 1 | . 1 . . . . . . . . . 1 . . . . . . . 1 . . . . . . . . . . . . Uniques/NPCs Destroyed 1 | . . . . . . . . . . . . . . . . . . . . 1 . . . . . . . . . . . A7 (-5/Cetus) Combat | -11 -10 -10 -9 -9 -8 -7 -7 -7 -7 -6 -6 -6 -6 -6 -5 -5 -5 -5 -5 -5 -5 -5 -4 -4 -4 -4 -3 -3 -3 -2 -2 -------- Run | Scr Mat Min Mat Min Mat Fac Low Low Dat Pro Fac Low Low Zio Pro Fac Was Fac Ext Cet Arc Hub Fac Upp Upp Zhi Pro Res Qua Res Tes Damage Taken 11519 | 645 596 71 801 284 1572 357 . . . . 1076 139 99 . 224 109 . 972 37 . . 144 343 . . . . 482 93 2433 1042 Core 1393 | 70 72 12 126 43 89 79 . . . . 110 12 . . 56 43 . 192 17 . . . 45 . . . . 29 . 280 118 Absorbed by Shields 333 | . . . . . . . . . . . . . . . . . . . . . . . . . . . . . . 333 . Redirected to Shielding 154 | . . . . . . . . . . . . . . . . . . . . . . . . . . . . 154 . . . Regen/Repaired (Parts) 994 | . . . . . 251 . . . . . 108 . . . . . . . . 14 84 . 25 24 . . . 28 89 173 198 Core Remaining (%) 75 | 72 . 38 . 57 83 . . . . 88 . . . . 79 . . . . . . 74 . . . . 96 . 91 . . Volleys Fired 812 | 50 72 7 78 22 140 4 3 23 . 2 27 8 3 . 19 13 . 79 22 29 . 15 7 . . . . 16 19 93 61 Largest 2 | 2 2 2 2 2 2 2 1 1 . 1 2 2 2 . 2 2 . 2 1 1 . 1 1 . . . . 1 1 1 1 Hottest 136 | 40 60 130 136 136 136 135 30 30 . 30 90 60 60 . 60 70 . 70 35 35 . 35 35 . . . . 113 113 120 120 Shots Fired 1185 | 98 100 9 153 45 278 8 3 23 . 2 50 12 6 . 32 24 . 84 22 29 . 15 7 . . . . 16 19 92 58 Gun 425 | 98 99 4 134 . 76 8 . . . . . . . . . . . . . . . . . . . . . . . . 6 Cannon 723 | . . . 18 45 200 . 3 23 . 2 50 8 6 . 26 24 . 83 22 14 . 15 7 . . . . 16 19 90 52 Launcher 22 | . 1 5 1 . 2 . . . . . . 4 . . 6 . . 1 . . . . . . . . . . . 2 . Special 15 | . . . . . . . . . . . . . . . . . . . . 15 . . . . . . . . . . . Kinetic 172 | 98 74 . . . . . . . . . . . . . . . . . . . . . . . . . . . . . . Thermal 991 | . 25 4 152 45 276 8 3 23 . 2 50 8 6 . 26 24 . 83 22 29 . 15 7 . . . . 16 19 90 58 Explosive 22 | . 1 5 1 . 2 . . . . . . 4 . . 6 . . 1 . . . . . . . . . . . 2 . Electromagnetic . | . . . . . . . . . . . . . . . . . . . . . . . . . . . . . . . . Robot Hit Streak 27 | 5 13 5 18 8 19 . . . . 9 11 6 7 . 15 12 . 8 7 8 . 5 4 . . . . 1 7 23 27 Robot Miss Streak 13 | 4 3 3 13 3 3 . . . . . 1 3 . . 2 1 . 2 2 2 . . 1 . . . . 2 1 1 1 Penetration Max . | . . . . . . . . . . . . . . . . . . . . . . . . . . . . . . . . Secondary Targets 7 | 4 . . 1 . 2 . . . . . . . . . . . . . . . . . . . . . . . . . . Max Gunslinging Chain 1 | 1 . . 1 . 1 . . . . . . . . . . . . . . . . . . . . . . . . . . Shots Hit Robots 767 | 53 77 4 132 31 202 7 1 . . 2 45 5 6 . 24 19 . 29 12 23 . 6 15 . 1 . . 3 7 45 18 Core Hits 527 | 32 31 23 174 8 74 10 1 . . 1 19 9 2 . 34 13 . 29 6 6 . 13 8 . . . . 1 2 20 11 Critical Kills 7 | . 2 . 1 . 3 . . . . . . . . . . . . . . . . . . . . . . . . 1 . Critical Parts Destroyed 2 | 1 1 . . . . . . . . . . . . . . . . . . . . . . . . . . . . . . Critical Strikes 24 | 1 3 . 1 . 10 . . . . . 2 . . . . 1 . 2 1 1 . . . . . . . . . 2 . Burn 7 | . . . . . 7 . . . . . . . . . . . . . . . . . . . . . . . . . . Meltdown 5 | . . . 1 . 3 . . . . . . . . . . . . . . . . . . . . . . . . 1 . Destroy 2 | 1 1 . . . . . . . . . . . . . . . . . . . . . . . . . . . . . . Smash 2 | . 2 . . . . . . . . . . . . . . . . . . . . . . . . . . . . . . Sever 1 | . . . . . . . . . . . . . . . . . . . . 1 . . . . . . . . . . . Impale 7 | . . . . . . . . . . . 2 . . . . 1 . 2 1 . . . . . . . . . . 1 . Melee Attacks 118 | . 7 . . . . 21 3 2 . . 22 . . . 1 9 . 14 4 5 . 3 13 . 1 . 1 . 3 9 . Impact 7 | . 7 . . . . . . . . . . . . . . . . . . . . . . . . . . . . . . Slashing 1 | . . . . . . . . . . . . . . . 1 . . . . . . . . . . . . . . . . Piercing 110 | . . . . . . 21 3 2 . . 22 . . . . 9 . 14 4 5 . 3 13 . 1 . 1 . 3 9 . Sneak Attacks 48 | . 1 . . . . 4 1 . . . 10 . . . 1 5 . 7 2 5 . 2 5 . . . . . 1 4 . Combat Hostiles . | . . . . . . . . . . . . . . . . . . . . . . . . . . . . . . . . Follow-up Attacks . | . . . . . . . . . . . . . . . . . . . . . . . . . . . . . . . . Damage Inflicted 27484 | 688 1042 476 2250 687 4539 1007 96 . . 65 2400 374 192 . 1722 1007 . 2692 521 853 . 964 1018 . 93 . . 155 344 3042 1257 Guns 4285 | 688 629 37 1654 . 1123 . . . . . . . . . . . . . . . . . . . . . . . . . 154 Cannons 10727 | . . . 281 670 3126 . . . . 65 920 166 192 . 569 386 . 627 253 270 . 98 138 . . . . 119 244 1738 865 Explosions 5863 | . 174 439 276 . 265 564 . . . . 342 208 . . 1008 . . 1054 . . . 602 . . . . . . . 693 238 Melee 6214 | . 201 . . . . 443 96 . . . 1120 . . . 145 621 . 992 268 380 . 264 880 . 93 . . . 100 611 . Ramming 192 | . 38 . 39 17 25 . . . . . 18 . . . . . . 19 . . . . . . . . . 36 . . . Kinetic 1110 | 688 422 . . . . . . . . . . . . . . . . . . . . . . . . . . . . . . Thermal 15363 | . 207 37 1992 670 4249 . . . . 65 1262 166 192 . 569 386 . 1486 253 473 . 98 138 . . . . 119 244 1738 1019 Explosive 3765 | . 174 439 219 . 265 564 . . . . . 208 . . 1008 . . 195 . . . . . . . . . . . 693 . Electromagnetic 840 | . . . . . . . . . . . . . . . . . . . . . . 602 . . . . . . . . 238 Impact 201 | . 201 . . . . . . . . . . . . . . . . . . . . . . . . . . . . . . Slashing 145 | . . . . . . . . . . . . . . . 145 . . . . . . . . . . . . . . . . Piercing 5868 | . . . . . . 443 96 . . . 1120 . . . . 621 . 992 268 380 . 264 880 . 93 . . . 100 611 . Highest Corruption 34 | . . . 3 3 . . . . . . 4 4 4 4 . 1 1 1 1 1 1 1 . . . . . . . 32 34 Average Corruption 4 | . . . 3 3 . . . . . . 4 4 4 4 . 1 1 1 1 1 1 1 . . . . . . . 9 32 Corruption Purged . | . . . . . . . . . . . . . . . . . . . . . . . . . . . . . . . . Corruption Blocked 16 | . . . . . . . . . . . . . . . . . . . . . . . 16 . . . . . . . . Effects 124 | . . . 19 9 . . . . . . 2 7 4 2 . . 2 16 7 4 6 2 . . . . . . . 11 33 Message Errors 34 | . . . 5 . . . . . . . 1 3 1 1 . . 1 6 1 . 1 1 . . . . . . . 1 12 Matter Fused 32 | . . . 5 4 . . . . . . . 3 . 1 . . . 3 4 2 2 . . . . . . . . 3 5 Heat Flow Errors 14 | . . . 3 1 . . . . . . 1 1 . . . . . 1 1 . 1 . . . . . . . . 2 3 Energy Discharges 10 | . . . 2 1 . . . . . . . . 1 . . . . 2 . . . . . . . . . . . 1 3 Parts Rejected 1 | . . . . . . . . . . . . . . . . . . . . . . . . . . . . . . . 1 Data Loss (minor) 14 | . . . . 2 . . . . . . . . 2 . . . 1 2 1 1 1 1 . . . . . . . 1 2 Data Loss (major) 5 | . . . 3 . . . . . . . . . . . . . . . . . 1 . . . . . . . . 1 . Misfires 2 | . . . . 1 . . . . . . . . . . . . . 1 . . . . . . . . . . . . . Alerts 5 | . . . 1 . . . . . . . . . . . . . . 1 . 1 . . . . . . . . . 1 1 Misdirections 4 | . . . . . . . . . . . . . . . . . . . . . . . . . . . . . . . 4 Weapon Failures 3 | . . . . . . . . . . . . . . . . . . . . . . . . . . . . . . 1 2 Overload Shots 9 | . . . . . . . . . . . 2 . . . . . . . . . . . . . . . . . . . 7 Effects 2 | . . . . . . . . . . . . . . . . . . . . . . . . . . . . . . . 2 Energy Bleed 1 | . . . . . . . . . . . . . . . . . . . . . . . . . . . . . . . 1 Short Circuit 1 | . . . . . . . . . . . . . . . . . . . . . . . . . . . . . . . 1 Overflow Damage 1532 | . 77 . 20 . 71 109 . . . . 271 . . . 20 . . 187 79 50 . 56 73 . 72 . . . 72 360 15 Projectiles 265 | . . . . . 35 . . . . . 65 . . . 11 . . 7 4 . . . . . . . . . 12 116 15 Explosions 405 | . . . 20 . 36 63 . . . . 80 . . . 9 . . 108 . . . 18 . . . . . . . 71 . Melee 862 | . 77 . . . . 46 . . . . 126 . . . . . . 72 75 50 . 38 73 . 72 . . . 60 173 . Knockbacks 3 | . 1 . 1 . . . . . . . . . . . . . . 1 . . . . . . . . . . . . . Impact 3 | . 1 . 1 . . . . . . . . . . . . . . 1 . . . . . . . . . . . . . Kinetic . | . . . . . . . . . . . . . . . . . . . . . . . . . . . . . . . . Secondary . | . . . . . . . . . . . . . . . . . . . . . . . . . . . . . . . . Self-Inflicted Damage 409 | . . 27 78 . . . . . . . 118 25 . . 38 . . 9 . . . 96 . . . . . 18 . . . Shots 7 | . . 1 1 . . . . . . . 2 1 . . 1 . . . . . . 1 . . . . . . . . . Rammed 18 | . 3 . 5 1 4 . . . . . 2 . . . . . . 2 . . . . . . . . . 1 . . . Targets Rammed 19 | . 4 . 5 1 4 . . . . . 2 . . . . . . 2 . . . . . . . . . 1 . . . Kicked . | . . . . . . . . . . . . . . . . . . . . . . . . . . . . . . . . Crushed 1 | . 1 . . . . . . . . . . . . . . . . . . . . . . . . . . . . . . Highest Temperature 263 | 168 126 75 263 243 189 51 . . . . 173 254 6 . . . . 221 60 . 165 . 5 . . . . 188 243 140 242 Average Temperature 55 | 87 29 40 46 98 51 28 . . . . 47 84 6 . . . . 102 38 . 87 . 5 . . . . 76 108 16 104 Received Heat Transfer 2572 | 400 267 . 294 162 522 21 . . . . 201 27 30 . 54 18 . 199 . . . 9 72 . . . . 27 9 89 171 Effects 1 | . . . . . . . . . . . . . . . . . . 1 . . . . . . . . . . . . . Energy Bleed 1 | . . . . . . . . . . . . . . . . . . 1 . . . . . . . . . . . . . Siege Activations . | . . . . . . . . . . . . . . . . . . . . . . . . . . . . . . . . Robots Corrupted . | . . . . . . . . . . . . . . . . . . . . . . . . . . . . . . . . Combat Hostiles . | . . . . . . . . . . . . . . . . . . . . . . . . . . . . . . . . Parts Fried 4 | . 4 . . . . . . . . . . . . . . . . . . . . . . . . . . . . . . Impact Corruptions 2 | . 2 . . . . . . . . . . . . . . . . . . . . . . . . . . . . . . Robots Melted 10 | . . . 1 . 6 . . . . . 1 . . . . . . . . 1 . . . . . . . . . 1 . Combat Hostiles 8 | . . . 1 . 6 . . . . . . . . . . . . . . 1 . . . . . . . . . . . Parts Melted 46 | . . . 4 3 21 . . . . . 1 . . . 4 4 . 1 1 . . . . . . . . . . 6 1 Heat Transferred 21441 | . 475 50 2601 1184 8214 . . . . 74 1286 185 222 . 777 533 . 1400 400 924 . 150 200 . . . . 111 222 1397 1036 Parts Sabotaged . | . . . . . . . . . . . . . . . . . . . . . . . . . . . . . . . . Parts Stolen . | . . . . . . . . . . . . . . . . . . . . . . . . . . . . . . . . Parts Stripped . | . . . . . . . . . . . . . . . . . . . . . . . . . . . . . . . . Power Chain Reactions . | . . . . . . . . . . . . . . . . . . . . . . . . . . . . . . . . Missiles Intercepted . | . . . . . . . . . . . . . . . . . . . . . . . . . . . . . . . . Alert | -11 -10 -10 -9 -9 -8 -7 -7 -7 -7 -6 -6 -6 -6 -6 -5 -5 -5 -5 -5 -5 -5 -5 -4 -4 -4 -4 -3 -3 -3 -2 -2 ------- Run | Scr Mat Min Mat Min Mat Fac Low Low Dat Pro Fac Low Low Zio Pro Fac Was Fac Ext Cet Arc Hub Fac Upp Upp Zhi Pro Res Qua Res Tes Peak Influence 1570 | . 198 118 417 226 467 504 . . . . 255 . . . . 414 142 1271 1010 623 372 994 782 . . . . 83 179 1570 1197 Initial 860 | . . 27 . 56 9 145 . . . . 23 . . . . 231 142 99 622 481 249 7 486 . . . . . 2 100 860 Average 306 | . 66 35 206 109 270 299 . . . . 94 . . . . 276 142 709 847 562 254 275 617 . . . . 21 38 525 969 Maximum Alert Level 4 | . . . 2 1 2 2 . . . . 1 . . . . 2 . 4 3 2 1 3 3 . . . . . . 4 4 Low Security (%) 50 | 100 100 100 51 76 18 40 . . . . 96 . . . . 2 100 8 . . 52 55 . . . . . 100 100 40 . Level 1 21 | . . . 46 23 76 28 . . . . 3 . . . . 90 . . . . 47 4 . . . . . . . 4 . Level 2 12 | . . . 1 . 4 30 . . . . . . . . . 6 . 33 18 100 . 35 80 . . . . . . 31 . Level 3 12 | . . . . . . . . . . . . . . . . . . 49 81 . . 4 19 . . . . . . 11 85 Level 4 1 | . . . . . . . . . . . . . . . . . . 7 . . . . . . . . . . . 13 14 Level 5 . | . . . . . . . . . . . . . . . . . . . . . . . . . . . . . . . . High Security . | . . . . . . . . . . . . . . . . . . . . . . . . . . . . . . . . Max Security . | . . . . . . . . . . . . . . . . . . . . . . . . . . . . . . . . Squads Dispatched 87 | . 1 . 4 . 6 7 . . . . 11 . . . 1 8 . 19 4 . . 2 8 . . . . 1 2 7 6 Investigation 29 | . . . 2 . 2 6 . . . . 4 . . . . 4 . 4 1 . . . 2 . . . . 1 2 . 1 Extermination 11 | . . . . . . . . . . . 2 . . . . 1 . 4 . . . . 1 . . . . . . 2 1 Reinforcement 24 | . 1 . 2 . 4 1 . . . . 2 . . . . 1 . 4 1 . . 2 2 . . . . . . 2 2 Assault 12 | . . . . . . . . . . . . . . . 1 2 . 4 2 . . . . . . . . . . 1 2 Garrison 11 | . . . . . . . . . . . 3 . . . . . . 3 . . . . 3 . . . . . . 2 . Intercept . | . . . . . . . . . . . . . . . . . . . . . . . . . . . . . . . . Construction Impeded 4 | . . . . . . . . . . . . . . . . . . 1 . . . 1 . . . . . . . 1 1 Haulers Reinforced 4 | . . . . . . . . . . . 1 . . . . 1 . . . . . 1 1 . . . . . . . . Active Scanning Responses . | . . . . . . . . . . . . . . . . . . . . . . . . . . . . . . . . Cargo Convoy Interrupts 1 | . . . . . . . . . . . 1 . . . . . . . . . . . . . . . . . . . . Stealth | -11 -10 -10 -9 -9 -8 -7 -7 -7 -7 -6 -6 -6 -6 -6 -5 -5 -5 -5 -5 -5 -5 -5 -4 -4 -4 -4 -3 -3 -3 -2 -2 --------- Run | Scr Mat Min Mat Min Mat Fac Low Low Dat Pro Fac Low Low Zio Pro Fac Was Fac Ext Cet Arc Hub Fac Upp Upp Zhi Pro Res Qua Res Tes Distress Signals 25 | . 1 . 2 . 4 1 . . . . 2 . . . . 1 . 3 2 1 . . 1 . . . . 1 . 4 2 Communications Jammed . | . . . . . . . . . . . . . . . . . . . . . . . . . . . . . . . . Distress Signals . | . . . . . . . . . . . . . . . . . . . . . . . . . . . . . . . . Times Spotted 471 | 21 18 14 43 7 55 18 . 2 . 1 28 5 1 . 23 15 . 53 20 5 2 5 15 . . . . 14 7 78 21 Peak Tracking Total 23 | 4 4 11 4 3 5 4 . 3 . 1 7 3 1 . 9 4 . 11 6 5 1 1 6 . . . . 11 3 23 8 Tactical Retreats 56 | 6 3 1 1 . 1 6 . 1 . . 3 . . . 2 1 . 12 1 . . . 1 . . . . . 1 13 3 Traps | -11 -10 -10 -9 -9 -8 -7 -7 -7 -7 -6 -6 -6 -6 -6 -5 -5 -5 -5 -5 -5 -5 -5 -4 -4 -4 -4 -3 -3 -3 -2 -2 ------- Run | Scr Mat Min Mat Min Mat Fac Low Low Dat Pro Fac Low Low Zio Pro Fac Was Fac Ext Cet Arc Hub Fac Upp Upp Zhi Pro Res Qua Res Tes Traps Triggered 18 | . 1 . . . 2 1 . . . . 2 . . . . 1 . 9 . . . . . . . . . . 2 . . Indirectly . | . . . . . . . . . . . . . . . . . . . . . . . . . . . . . . . . Trap Hack Attempts . | . . . . . . . . . . . . . . . . . . . . . . . . . . . . . . . . Triggered . | . . . . . . . . . . . . . . . . . . . . . . . . . . . . . . . . Disarmed . | . . . . . . . . . . . . . . . . . . . . . . . . . . . . . . . . Reprogrammed . | . . . . . . . . . . . . . . . . . . . . . . . . . . . . . . . . Reused . | . . . . . . . . . . . . . . . . . . . . . . . . . . . . . . . . Traps Extracted . | . . . . . . . . . . . . . . . . . . . . . . . . . . . . . . . . Installed . | . . . . . . . . . . . . . . . . . . . . . . . . . . . . . . . . Triggered 11 | . . . . . . . . 1 . . 2 . 1 . . . . . . . . . . . 3 . 4 . . . . Machines | -11 -10 -10 -9 -9 -8 -7 -7 -7 -7 -6 -6 -6 -6 -6 -5 -5 -5 -5 -5 -5 -5 -5 -4 -4 -4 -4 -3 -3 -3 -2 -2 ---------- Run | Scr Mat Min Mat Min Mat Fac Low Low Dat Pro Fac Low Low Zio Pro Fac Was Fac Ext Cet Arc Hub Fac Upp Upp Zhi Pro Res Qua Res Tes Machines Disabled 59 | . . . 4 . 2 8 . . . . 6 . . . . 2 . 16 . . 1 8 . . . . . . 3 2 7 Max in Single Turn 9 | . . . 2 . 1 6 . . . . 3 . . . . . . 9 . . . 6 . . . . . . 1 . 2 Garrison Access 2 | . . . . . 1 . . . . . . . . . . . . 1 . . . . . . . . . . . . . Network Hub 1 | . . . . . . . . . . . . . . . . . . . . . . 1 . . . . . . . . . Machines Sabotaged . | . . . . . . . . . . . . . . . . . . . . . . . . . . . . . . . . Garrisons Compromised 1 | . . . . . . . . . . . 1 . . . . . . . . . . . . . . . . . . . . Overloaded Fab Kills . | . . . . . . . . . . . . . . . . . . . . . . . . . . . . . . . . Hacking | -11 -10 -10 -9 -9 -8 -7 -7 -7 -7 -6 -6 -6 -6 -6 -5 -5 -5 -5 -5 -5 -5 -5 -4 -4 -4 -4 -3 -3 -3 -2 -2 --------- Run | Scr Mat Min Mat Min Mat Fac Low Low Dat Pro Fac Low Low Zio Pro Fac Was Fac Ext Cet Arc Hub Fac Upp Upp Zhi Pro Res Qua Res Tes Machines Accessed 64 | . 4 1 9 . 11 11 . 1 4 . 6 . . . . 4 . 4 . . . . 1 1 1 4 . 1 . . 1 Terminals 30 | . 4 . 7 . 6 8 . . . . 4 . . . . . . . . . . . . 1 . . . . . . . Fabricators 12 | . . . . . . 3 . . . . 1 . . . . 3 . 3 . . . . 1 . . . . 1 . . . Repair Stations 3 | . . . . . 2 . . . . . 1 . . . . . . . . . . . . . . . . . . . . Recycling Units . | . . . . . . . . . . . . . . . . . . . . . . . . . . . . . . . . Scanalyzers 5 | . . . 2 . 2 . . . . . . . . . . . . . . . . . . . . . . . . . 1 Garrison Access 3 | . . . . . 1 . . . . . . . . . . 1 . 1 . . . . . . . . . . . . . Total Hacks 235 | . 11 1 49 . 42 35 . 1 28 . 19 . . . . 11 . 9 . . . . 3 1 8 15 . 1 . . 1 Successful 157 | . 8 1 28 . 28 19 . 1 28 . 4 . . . . 4 . 8 . . . . 2 1 8 15 . 1 . . 1 Failed 78 | . 3 . 21 . 14 16 . . . . 15 . . . . 7 . 1 . . . . 1 . . . . . . . . Catastrophic 9 | . . . 1 . 1 2 . . . . 3 . . . . 1 . 1 . . . . . . . . . . . . . Database Lockouts . | . . . . . . . . . . . . . . . . . . . . . . . . . . . . . . . . Manual 257 | . 10 . 29 . 17 21 . . . . 7 . . . . 21 . 34 21 1 . 21 11 . . . . 11 20 18 15 Terminals 103 | . 11 . 31 . 24 25 . . . . 11 . . . . . . . . . . . . 1 . . . . . . . Fabricators 34 | . . . . . . 10 . . . . 3 . . . . 9 . 8 . . . . 3 . . . . 1 . . . Repair Stations 12 | . . . . . 7 . . . . . 5 . . . . . . . . . . . . . . . . . . . . Recycling Units . | . . . . . . . . . . . . . . . . . . . . . . . . . . . . . . . . Scanalyzers 29 | . . . 18 . 10 . . . . . . . . . . . . . . . . . . . . . . . . . 1 Garrison Access 4 | . . . . . 1 . . . . . . . . . . 2 . 1 . . . . . . . . . . . . . Terminal Hacks 84 | . 5 1 10 . 9 6 . 1 28 . . . . . . . . . . . . . . 1 8 15 . . . . . Record 25 | . . . . . . . . . 11 . . . . . . . . . . . . . . 1 8 5 . . . . . Part Schematic 14 | . . . . . . . . . 11 . . . . . . . . . . . . . . . . 3 . . . . . Robot Schematic 3 | . . . . . . . . . 3 . . . . . . . . . . . . . . . . . . . . . . Robot Analysis 6 | . 1 . 2 . . . . . . . . . . . . . . . . . . . . . . 3 . . . . . Prototype ID Bank 9 | . . . 2 . . . . . 3 . . . . . . . . . . . . . . . . 4 . . . . . Open Door 2 | . . 1 . . . . . 1 . . . . . . . . . . . . . . . . . . . . . . . Branch Access Points 1 | . . . . . . 1 . . . . . . . . . . . . . . . . . . . . . . . . . Terminal Index 3 | . 1 . . . 1 1 . . . . . . . . . . . . . . . . . . . . . . . . . Fabricator Index 1 | . . . . . . 1 . . . . . . . . . . . . . . . . . . . . . . . . . Repair Station Index 1 | . . . . . 1 . . . . . . . . . . . . . . . . . . . . . . . . . . Scanalyzer Index 1 | . . . 1 . . . . . . . . . . . . . . . . . . . . . . . . . . . . Alert Level 6 | . 2 . 1 . 3 . . . . . . . . . . . . . . . . . . . . . . . . . . Unreport Threat 7 | . . . 3 . 2 2 . . . . . . . . . . . . . . . . . . . . . . . . . Locate Traps 1 | . . . . . 1 . . . . . . . . . . . . . . . . . . . . . . . . . . Hauler Manifests 3 | . . . 1 . 1 1 . . . . . . . . . . . . . . . . . . . . . . . . . Zone Layout 1 | . 1 . . . . . . . . . . . . . . . . . . . . . . . . . . . . . . Fabricator Hacks 19 | . . . . . . 5 . . . . 2 . . . . 4 . 6 . . . . 2 . . . . . . . . Load Schematic 11 | . . . . . . 3 . . . . 1 . . . . 3 . 3 . . . . 1 . . . . . . . . Build 8 | . . . . . . 2 . . . . 1 . . . . 1 . 3 . . . . 1 . . . . . . . . Repair Station Hacks 8 | . . . . . 6 . . . . . 2 . . . . . . . . . . . . . . . . . . . . Scan Component 4 | . . . . . 3 . . . . . 1 . . . . . . . . . . . . . . . . . . . . Repair 4 | . . . . . 3 . . . . . 1 . . . . . . . . . . . . . . . . . . . . Recycling Unit Hacks . | . . . . . . . . . . . . . . . . . . . . . . . . . . . . . . . . Scanalyzer 20 | . . . 12 . 7 . . . . . . . . . . . . . . . . . . . . . . . . . 1 Insert Component 9 | . . . 4 . 4 . . . . . . . . . . . . . . . . . . . . . . . . . 1 Analyze 11 | . . . 8 . 3 . . . . . . . . . . . . . . . . . . . . . . . . . . Garrison Access Hacks 2 | . . . . . 1 . . . . . . . . . . . . 1 . . . . . . . . . . . . . Seal Access 2 | . . . . . 1 . . . . . . . . . . . . 1 . . . . . . . . . . . . . Unauthorized Hacks 24 | . 3 . 6 . 5 8 . . . . . . . . . . . 1 . . . . . . . . . 1 . . . Terminals 21 | . 3 . 6 . 5 7 . . . . . . . . . . . . . . . . . . . . . . . . . Assimilate 1 | . . . . . . 1 . . . . . . . . . . . . . . . . . . . . . . . . . Botnet 20 | . 3 . 6 . 5 6 . . . . . . . . . . . . . . . . . . . . . . . . . Fabricators 3 | . . . . . . 1 . . . . . . . . . . . 1 . . . . . . . . . 1 . . . Prioritize 1 | . . . . . . . . . . . . . . . . . . 1 . . . . . . . . . . . . . Haulers 2 | . . . . . . 1 . . . . . . . . . . . . . . . . . . . . . 1 . . . Repair Stations . | . . . . . . . . . . . . . . . . . . . . . . . . . . . . . . . . Recycling Units . | . . . . . . . . . . . . . . . . . . . . . . . . . . . . . . . . Scanalyzers . | . . . . . . . . . . . . . . . . . . . . . . . . . . . . . . . . Garrison Access . | . . . . . . . . . . . . . . . . . . . . . . . . . . . . . . . . Data Cores Recovered . | . . . . . . . . . . . . . . . . . . . . . . . . . . . . . . . . Used . | . . . . . . . . . . . . . . . . . . . . . . . . . . . . . . . . Hacking Detections 48 | . 4 . 9 . 9 10 . . . . 6 . . . . 4 . 3 . . . . 1 . . . . 1 . . 1 Full Trace Events 19 | . . . 2 . 1 5 . . . . 4 . . . . 3 . 3 . . . . 1 . . . . . . . . Feedback Events 1 | . . . . . . . . . . . 1 . . . . . . . . . . . . . . . . . . . . Hackware Fried 1 | . . . . . . . . . . . 1 . . . . . . . . . . . . . . . . . . . . Feedback Blocked . | . . . . . . . . . . . . . . . . . . . . . . . . . . . . . . . . Robot Schematics Acquired 10 | . . . . . . . . . 3 . . . . 3 . . . . . . . . . . . . . . 4 . . Robots Built . | . . . . . . . . . . . . . . . . . . . . . . . . . . . . . . . . Authchips . | . . . . . . . . . . . . . . . . . . . . . . . . . . . . . . . . Time . | . . . . . . . . . . . . . . . . . . . . . . . . . . . . . . . . Total Robot Build Rating . | . . . . . . . . . . . . . . . . . . . . . . . . . . . . . . . . Part Schematics Acquired 88 | . . . 1 . 3 . . . 11 . . . . 15 . . . 22 . . . . . . . 3 . . 22 . 11 Parts Built 15 | . . . . . . 4 . . . . 2 . . . . 2 . 5 . . . . 2 . . . . . . . . Authchips . | . . . . . . . . . . . . . . . . . . . . . . . . . . . . . . . . Time 616 | . . . . . . 94 . . . . 106 . . . . 53 . 310 . . . . 53 . . . . . . . . Total Part Build Rating 88 | . . . . . . 20 . . . . 12 . . . . 12 . 32 . . . . 12 . . . . . . . . Parts Repaired 4 | . . . . . 3 . . . . . 1 . . . . . . . . . . . . . . . . . . . . Time 256 | . . . . . 212 . . . . . 44 . . . . . . . . . . . . . . . . . . . . Parts Recycled . | . . . . . . . . . . . . . . . . . . . . . . . . . . . . . . . . Recycled Matter . | . . . . . . . . . . . . . . . . . . . . . . . . . . . . . . . . Retrieved Matter . | . . . . . . . . . . . . . . . . . . . . . . . . . . . . . . . . Retrieved Components . | . . . . . . . . . . . . . . . . . . . . . . . . . . . . . . . . Parts Scanalyzed 4 | . . . 2 . 2 . . . . . . . . . . . . . . . . . . . . . . . . . . Part Schematics Acquired 4 | . . . 1 . 3 . . . . . . . . . . . . . . . . . . . . . . . . . . Parts Damaged . | . . . . . . . . . . . . . . . . . . . . . . . . . . . . . . . . Bothacking | -11 -10 -10 -9 -9 -8 -7 -7 -7 -7 -6 -6 -6 -6 -6 -5 -5 -5 -5 -5 -5 -5 -5 -4 -4 -4 -4 -3 -3 -3 -2 -2 ------------ Run | Scr Mat Min Mat Min Mat Fac Low Low Dat Pro Fac Low Low Zio Pro Fac Was Fac Ext Cet Arc Hub Fac Upp Upp Zhi Pro Res Qua Res Tes Used RIF Installer . | . . . . . . . . . . . . . . . . . . . . . . . . . . . . . . . . Robots Hacked . | . . . . . . . . . . . . . . . . . . . . . . . . . . . . . . . . Non-combat . | . . . . . . . . . . . . . . . . . . . . . . . . . . . . . . . . Combat . | . . . . . . . . . . . . . . . . . . . . . . . . . . . . . . . . Robot Hacks Applied . | . . . . . . . . . . . . . . . . . . . . . . . . . . . . . . . . Relay Couplers Released . | . . . . . . . . . . . . . . . . . . . . . . . . . . . . . . . . Fabnet Peak Effective % . | . . . . . . . . . . . . . . . . . . . . . . . . . . . . . . . . Robots Rewired 18 | . . . . . . . . . . . . . . . 1 . . . 17 . . . . . . . . . . . . Allies Hacked 1 | . . . . . . . . . . . . . . . . . . 1 . . . . . . . . . . . . . Hacks Repelled . | . . . . . . . . . . . . . . . . . . . . . . . . . . . . . . . . Allies | -11 -10 -10 -9 -9 -8 -7 -7 -7 -7 -6 -6 -6 -6 -6 -5 -5 -5 -5 -5 -5 -5 -5 -4 -4 -4 -4 -3 -3 -3 -2 -2 -------- Run | Scr Mat Min Mat Min Mat Fac Low Low Dat Pro Fac Low Low Zio Pro Fac Was Fac Ext Cet Arc Hub Fac Upp Upp Zhi Pro Res Qua Res Tes Total Allies 74 | . . 5 . . . 1 . . . 1 . . . 9 1 4 . 6 32 5 . . 4 . . . . . . 6 . Largest Group 16 | . . 3 2 . . 1 . . . 1 1 . . 9 9 4 . 4 14 16 13 10 5 . . . . . . 3 . Highest-Rated Group 908 | . . 50 50 . . 10 . . . 96 96 . . 280 280 241 . 170 513 908 698 611 374 . . . . . . 345 . Highest-Rated Ally 269 | . . 31 31 . . 10 . . . 96 96 . . 37 37 85 . 85 159 159 96 96 103 . . . . . . 269 . Zionite Dispatches 13 | . . . . . . . . . . . . . . . . 2 . 2 3 . . . 2 . . . . . . 4 . Heavy 4 | . . . . . . . . . . . . . . . . 2 . 1 . . . . 1 . . . . . . . . Light 1 | . . . . . . . . . . . . . . . . . . . . . . . . . . . . . . 1 . Fire 4 | . . . . . . . . . . . . . . . . . . 1 3 . . . . . . . . . . . . Hacker 1 | . . . . . . . . . . . . . . . . . . . . . . . 1 . . . . . . . . Experimental 1 | . . . . . . . . . . . . . . . . . . . . . . . . . . . . . . 1 . Resource Resupply 1 | . . . . . . . . . . . . . . . . . . . . . . . . . . . . . . 1 . Heavy Resupply 1 | . . . . . . . . . . . . . . . . . . . . . . . . . . . . . . 1 . Total Orders 3 | . . . . . . . . . . . . . . . . . . . . 3 . . . . . . . . . . . STAY 2 | . . . . . . . . . . . . . . . . . . . . 2 . . . . . . . . . . . FOLLOW 1 | . . . . . . . . . . . . . . . . . . . . 1 . . . . . . . . . . . Ally Attacks 530 | . . 23 16 . . . . . . 2 7 . . . 99 18 . 35 103 47 23 71 34 . . . . . . 52 . Total Damage 16195 | . . 138 306 . . . . . . 57 334 . . . 1405 1588 . 1921 2002 1008 855 2232 1462 . . . . . . 2887 . Kills 117 | . . 4 4 . . . . . . . 1 . . . 11 14 . 14 24 5 5 13 10 . . . . . . 12 . Allies Corrupted 1 | . . . . . . . . . . . . . . . . . . . 1 . . . . . . . . . . . . Allies Melted 1 | . . . . . . . . . . . 1 . . . . . . . . . . . . . . . . . . . . Intel | -11 -10 -10 -9 -9 -8 -7 -7 -7 -7 -6 -6 -6 -6 -6 -5 -5 -5 -5 -5 -5 -5 -5 -4 -4 -4 -4 -3 -3 -3 -2 -2 ------- Run | Scr Mat Min Mat Min Mat Fac Low Low Dat Pro Fac Low Low Zio Pro Fac Was Fac Ext Cet Arc Hub Fac Upp Upp Zhi Pro Res Qua Res Tes Robot Analysis Total 6 | . 1 . 2 . . . . . . . . . . . . . . . . . . . . . . 3 . . . . . Derelict Logs Recovered 8 | . . 1 . . . . 1 1 . . . 1 . 2 1 . . . . . . . . 1 . . . . . . . Drone Launches . | . . . . . . . . . . . . . . . . . . . . . . . . . . . . . . . . Drone Recoveries . | . . . . . . . . . . . . . . . . . . . . . . . . . . . . . . . . Zionite Intel Received 34 | . . . . . . . . . . . . . . . . 3 . 7 3 . . 6 1 . . . . 2 6 2 4 Main Access 1 | . . . . . . . . . . . . . . . . . . . . . . 1 . . . . . . . . . Emergency Access 1 | . . . . . . . . . . . . . . . . 1 . . . . . . . . . . . . . . . Guard Positions 3 | . . . . . . . . . . . . . . . . . . 1 . . . 1 . . . . . . . . 1 Component Stockpiles 1 | . . . . . . . . . . . . . . . . . . . . . . 1 . . . . . . . . . Prototype Stockpiles 4 | . . . . . . . . . . . . . . . . . . . . . . 1 . . . . . 1 1 . 1 Component Schematics 2 | . . . . . . . . . . . . . . . . . . 1 . . . . . . . . . . 1 . . Prototype Schematics 3 | . . . . . . . . . . . . . . . . . . 1 . . . . . . . . . . 1 . 1 Unaware Schematics 1 | . . . . . . . . . . . . . . . . . . . . . . . . . . . . . 1 . . Unaware Analyses 6 | . . . . . . . . . . . . . . . . 1 . 1 1 . . 2 . . . . . . . 1 . Trap Installations 2 | . . . . . . . . . . . . . . . . 1 . . 1 . . . . . . . . . . . . Active Terminals 1 | . . . . . . . . . . . . . . . . . . . . . . . . . . . . . 1 . . Active Garrisons 2 | . . . . . . . . . . . . . . . . . . 1 . . . . 1 . . . . . . . . Depthwide Sectors/0 4 | . . . . . . . . . . . . . . . . . . 1 1 . . . . . . . . . 1 1 . Depthwide Sectors/-1 3 | . . . . . . . . . . . . . . . . . . 1 . . . . . . . . . 1 . . 1 Exploration | -11 -10 -10 -9 -9 -8 -7 -7 -7 -7 -6 -6 -6 -6 -6 -5 -5 -5 -5 -5 -5 -5 -5 -4 -4 -4 -4 -3 -3 -3 -2 -2 ------------- Run | Scr Mat Min Mat Min Mat Fac Low Low Dat Pro Fac Low Low Zio Pro Fac Was Fac Ext Cet Arc Hub Fac Upp Upp Zhi Pro Res Qua Res Tes Turns Passed 23260 | 2062 907 904 1842 504 2160 794 318 324 57 305 1308 285 255 783 641 929 183 2379 816 334 847 261 465 131 489 96 271 423 796 850 541 Spaces Moved 18811 | 295 407 384 881 265 846 1041 443 381 83 355 1466 352 348 912 560 882 283 2573 511 166 59 202 529 230 519 141 298 604 910 1078 807 Core 15 | 15 . . . . . . . . . . . . . . . . . . . . . . . . . . . . . . . Treads 3033 | 280 377 384 881 265 846 . . . . . . . . . . . . . . . . . . . . . . . . . . Legs 14 | . 14 . . . . . . . . . . . . . . . . . . . . . . . . . . . . . . Wheels 16 | . 16 . . . . . . . . . . . . . . . . . . . . . . . . . . . . . . Hover 15733 | . . . . . . 1041 443 381 83 355 1466 352 348 912 560 882 283 2573 511 166 59 202 529 230 519 141 298 604 910 1078 807 Flight . | . . . . . . . . . . . . . . . . . . . . . . . . . . . . . . . . Fastest Speed 17 | 50 110 160 160 160 160 53 68 68 68 68 68 68 68 68 68 64 64 58 58 58 64 64 55 55 55 55 55 55 55 17 38 Average Speed 75 | 156 159 160 160 160 160 55 68 68 68 68 68 68 68 68 68 64 64 60 58 58 64 66 55 55 55 55 55 55 55 40 38 Slowest Speed 240 | 160 240 160 160 160 240 68 68 68 68 68 138 68 142 68 68 134 64 138 58 64 64 134 55 55 55 55 55 55 55 130 120 Overloaded Moves 66 | . . . . . . . . . . . . . . . . . . . . . . . . . . . . . . 66 . Propulsion Burnouts . | . . . . . . . . . . . . . . . . . . . . . . . . . . . . . . . . Robots Hopped . | . . . . . . . . . . . . . . . . . . . . . . . . . . . . . . . . Cave-ins Triggered 4 | . . . . . . . . . . . 1 . . . . . . . . . . . . . . . . . . 3 . Teleports 1 | . . . . . . . . . . . . . . . . . . . . . . . . . . . . 1 . . . Exploration Rate (%) 55 | 35 59 77 73 73 72 31 65 58 70 54 29 47 60 87 63 24 94 58 66 49 65 27 17 43 64 60 51 21 86 49 47 Regions Visited 31 Branch Regions 20 Pre-discovered Areas 40 | . . . . . . . 1 . 1 . . . . 1 . . . 14 10 . . . . . . 3 . 2 4 2 2 Known Exits Taken 23 | . . . . . . 1 1 1 1 1 1 1 1 1 1 . . 1 1 1 1 1 1 1 1 1 1 1 1 1 . Unknown Exits Taken 6 | 1 1 1 1 1 1 . . . . . . . . . . . . . . . . . . . . . . . . . . Scrap Searched 20 | . . 1 . 2 . . 4 3 . . . 1 1 4 2 . . . . . . . . 1 1 . . . . . . Spaces Dug 188 | . . 15 . . . 11 3 3 . . 40 2 . . . 6 . 44 1 . . 3 2 . . . 1 6 9 27 15 Terrain Destroyed 876 | . 10 37 95 . 17 35 3 12 . . 72 25 . . 55 8 . 176 13 . . 163 3 . . . 1 12 11 103 25 Melee 25 | . . . . . . 11 2 2 . . 3 . . . . 2 . 1 . . . . 1 . . . 1 . 2 . . Projectile 216 | . . . . . . . 1 10 . . 18 2 . . 4 6 . 57 13 . . 4 2 . . . . 12 9 53 25 AOE 635 | . 10 37 95 . 17 24 . . . . 51 23 . . 51 . . 118 . . . 159 . . . . . . . 50 . Terrain Rammed . | . . . . . . . . . . . . . . . . . . . . . . . . . . . . . . . . Walls Destroyed . | . . . . . . . . . . . . . . . . . . . . . . . . . . . . . . . . Machines Disabled . | . . . . . . . . . . . . . . . . . . . . . . . . . . . . . . . . Actions | -11 -10 -10 -9 -9 -8 -7 -7 -7 -7 -6 -6 -6 -6 -6 -5 -5 -5 -5 -5 -5 -5 -5 -4 -4 -4 -4 -3 -3 -3 -2 -2 --------- Run | Scr Mat Min Mat Min Mat Fac Low Low Dat Pro Fac Low Low Zio Pro Fac Was Fac Ext Cet Arc Hub Fac Upp Upp Zhi Pro Res Qua Res Tes Total 26534 | 1797 562 665 1173 303 1379 1225 451 419 83 416 1691 384 359 1073 787 1206 284 3276 1004 349 867 308 676 234 720 158 403 684 1193 1433 972 Wait 5938 | 1438 38 262 125 12 324 101 3 14 1 60 128 22 7 150 175 252 . 510 288 140 808 86 117 5 200 7 105 54 226 215 65 Move 18779 | 294 406 383 880 264 845 1040 442 380 82 354 1465 351 347 911 559 882 282 2572 510 165 58 201 528 229 518 140 297 604 909 1074 807 Hop . | . . . . . . . . . . . . . . . . . . . . . . . . . . . . . . . . Pick Up 145 | 5 15 2 24 1 11 9 . . . . 10 1 1 2 6 10 2 11 4 1 . . 4 . . 2 . 3 3 8 10 Fast Attach 92 | 7 5 2 7 . 5 5 . . . . 11 . . 4 . 7 . 17 . 2 . . . . . 3 . . 5 4 8 Attach 59 | 2 4 3 3 . 5 7 . . . . 4 . 1 . 1 2 . 2 . . . . 3 . . 1 . 4 2 9 6 Detach 4 | . . 1 . . . . . . . . . . . . . . . . . . . . . . . . . . 1 . 2 Swap 140 | 1 6 2 16 1 21 14 . . . . 7 2 . 2 5 13 . 19 2 4 1 3 2 . . 1 . 2 2 8 6 Drop 199 | . 5 3 35 2 24 24 . . . . 15 . . 4 6 18 . 22 4 3 . . 2 . . 4 . 1 10 10 7 Fire 812 | 50 72 7 78 22 140 4 3 23 . 2 27 8 3 . 19 13 . 79 22 29 . 15 7 . . . . 16 19 93 61 Melee 118 | . 7 . . . . 21 3 2 . . 22 . . . 1 9 . 14 4 5 . 3 13 . 1 . 1 . 3 9 . Ram 3 | . . . . . . . . . . . 1 . . . . . . 2 . . . . . . . . . . . . . Kick . | . . . . . . . . . . . . . . . . . . . . . . . . . . . . . . . . Crush 14 | . 4 . 5 1 4 . . . . . . . . . . . . . . . . . . . . . . . . . . Escape Stasis 43 | . . . . . . . . . . . 1 . . . . . . 26 . . . . . . . . . . 13 3 . Rewire 188 | . . . . . . . . . . . . . . . 15 . . 2 170 . . . . . 1 . . . . . . Trap . | . . . . . . . . . . . . . . . . . . . . . . . . . . . . . . . . Miscellaneous . | . . . . . . . . . . . . . . . . . . . . . . . . . . . . . . . . Route ------- -11/Scrapyard -10/Materials (discovered 2 exits: *Mat / *Min) -10/Mines -9/Materials (discovered 4 exits: *Mat x2 / [*Min x2]) -9/Mines (discovered 2 exits: *Mat x2) -8/Materials -7/Factory (discovered 5 exits: *Fac / Sto x2 / *Low x2) -7/Lower Caves -7/Lower Caves (discovered 2 exits: Fac / *Dat) -7/Data Miner -6/Proximity Caves -6/Factory -6/Lower Caves -6/Lower Caves -6/Zion -5/Proximity Caves -5/Factory -5/Waste -5/Factory (discovered 4 exits: *Fac x3 / *Ext) -5/Extension (discovered 2 exits: *Fac / *Cet) -5/Cetus -5/Archives -5/Hub_04(d) (discovered 4 exits: *Fac x4) -4/Factory -4/Upper Caves -4/Upper Caves -4/Zhirov -3/Proximity Caves -3/Research (discovered 2 exits: *Res / *Qua) -3/Quarantine -2/Research (discovered 2 exits: *Acc / *Tes) -2/Testing History --------- Turn | Location | Event 18 | -11/Scrapyard | Discovered new exit (range 15) 1369 | -11/Scrapyard | Assembled infested the area 2063 | -11/Scrapyard | Entered Materials 2064 | -10/Materials | Build established: Mutant 2286 | -10/Materials | Lost 3 parts (1p2n) 2483 | -10/Materials | Discovered new exit (range 9) 2556 | -10/Materials | Build established: Scavenger-Mutant 2581 | -10/Materials | Core integrity fell below 50% 2799 | -10/Materials | Discovered new exit (range 7) 2970 | -10/Materials | Entered Mines 3046 | -10/Mines | Found the Drone Emporium 3054 | -10/Mines | Found Prototype Device 3054 | -10/Mines | Identified Sensor Drone Bay 3113 | -10/Mines | Assisted by bots powering up and referring to "LRC-V3" 3231 | -10/Mines | Found a hidden stash of uninstalled traps 3332 | -10/Mines | Assembled infested the area 3337 | -10/Mines | Assisted by a Guerilla fighting off Assembled 3393 | -10/Mines | Destroyed 8 combat bots 3812 | -10/Mines | Found a damaged Exp. Sensor Array with a note attached 3816 | -10/Mines | Found Prototype Device 3837 | -10/Mines | Discovered new exit (range 13) 3866 | -10/Mines | Learned Materials garrison access intel 3874 | -10/Mines | Entered Materials 3874 | -9/Materials | Accompanied by 2 allies 3874 | -9/Materials | Evolved 2 slots: Propulsion x1, Utility x1 3879 | -9/Materials | Led the pair of lost Derelicts to an unsafe place 3905 | -9/Materials | Discovered new exit (range 5) 3929 | -9/Materials | Identified Exp. Sensor Array 4368 | -9/Materials | Discovered new exit (range 13) 4911 | -9/Materials | Discovered new exit (range 13) 5471 | -9/Materials | Discovered new exit (range 7) 5716 | -9/Materials | Entered Mines 5717 | -9/Mines | Met a Derelict bent on vengeance 5856 | -9/Mines | Received a Rocket Launcher from a helpful Derelict 6017 | -9/Mines | Discovered new exit (range 12) 6181 | -9/Mines | A weapon hastily lodged in a ceiling crevice suddenly fell to the ground 6204 | -9/Mines | Discovered new exit (range 11) 6220 | -9/Mines | Entered Materials 6220 | -8/Materials | Evolved 2 slots: Propulsion x1, Utility x1 6221 | -8/Materials | Loaded intel: 1 garrison access location 7325 | -8/Materials | Repaired Broken Exp. Sensor Array? 7552 | -8/Materials | Repaired Hrd. Medium Armor Plating 7880 | -8/Materials | Discovered new exit (range 15) 8104 | -8/Materials | Repaired Hrd. Medium Armor Plating 8380 | -8/Materials | Entered Factory 8380 | -7/Factory | Evolved 2 slots: Utility x2 8471 | -7/Factory | Identified exit to Storage 8471 | -7/Factory | Identified exit to Lower Caves 8593 | -7/Factory | Discovered new exit (range 8) 8597 | -7/Factory | Identified exit to Factory 8680 | -7/Factory | Build established: Mutant 8764 | -7/Factory | Fabricated Cmb. Airjet? 8987 | -7/Factory | Fabricated Cmb. Airjet (x2) 9174 | -7/Factory | Entered Lower Caves 9292 | -7/Lower Caves | Learned location of Zion (-6) 9317 | -7/Lower Caves | Build established: Machinist-Mutant 9349 | -7/Lower Caves | Discovered new exit (range 13) 9357 | -7/Lower Caves | Identified exit to Lower Caves 9492 | -7/Lower Caves | Entered another Lower Caves area 9813 | -7/Lower Caves | Discovered new exit (range 5) 9815 | -7/Lower Caves | Identified exit to Data Miner 9816 | -7/Lower Caves | Entered Data Miner 9817 | -7/Data Miner | Discovered new exit (range 6) 9830 | -7/Data Miner | Met Data Miner 9845 | -7/Data Miner | Learned location of Section 7 (-2) 9845 | -7/Data Miner | Acquired the access code to Warlord's prototype stash 9855 | -7/Data Miner | Received God Mode back door access code from Data Miner 9873 | -7/Data Miner | Identified exit to Proximity Caves 9873 | -7/Data Miner | Entered Proximity Caves 9961 | -6/Proximity Caves | Escorted by Enhanced Grunt 10144 | -6/Proximity Caves | Discovered exit to Factory (range 7) 10178 | -6/Proximity Caves | Entered Factory 10178 | -6/Factory | Accompanied by 1 ally 10178 | -6/Factory | Evolved 2 slots: Utility x2 10220 | -6/Factory | Hacking Suite fried by hacking feedback 10326 | -6/Factory | Fabricated Cmb. Gravmag System? 10506 | -6/Factory | Repaired Imp. Medium Armor Plating 10615 | -6/Factory | Discovered new exit (range 8) 10619 | -6/Factory | Identified exit to Lower Caves 11093 | -6/Factory | Incoming investigation squad redirected 11139 | -6/Factory | Cargo convoy interrupted 11184 | -6/Factory | Incoming investigation squad redirected 11194 | -6/Factory | Incoming investigation squad redirected 11460 | -6/Factory | Crushed by falling debris 11486 | -6/Factory | Entered Lower Caves 11510 | -6/Lower Caves | Lost 3 parts (2u1w) 11633 | -6/Lower Caves | Discovered new exit (range 13) 11640 | -6/Lower Caves | Identified exit to Lower Caves 11705 | -6/Lower Caves | Learned Factory terminal intel 11771 | -6/Lower Caves | Entered another Lower Caves area 11822 | -6/Lower Caves | Attracted the attention of an 0b10 checkpoint 11931 | -6/Lower Caves | Encountered a Warlord checkpoint 11937 | -6/Lower Caves | Discovered new exit (range 16) 11947 | -6/Lower Caves | Identified exit to Zion 12026 | -6/Lower Caves | Entered Zion 12059 | -6/Zion | System corruption cleaned by Quarantine Array 12115 | -6/Zion | Discovered new exit (range 12) 12201 | -6/Zion | Learned location of Armory (-3) 12273 | -6/Zion | Learned 4 Factory zone layouts 12335 | -6/Zion | Learned Factory stockpile data 12359 | -6/Zion | Gained Derelict followers 12376 | -6/Zion | Given the Hacking Drone Bay 12516 | -6/Zion | Build established: Machinist-Scout 12539 | -6/Zion | Imprinted 12541 | -6/Zion | Declared Zion's savior 12658 | -6/Zion | Identified exit to Proximity Caves 12809 | -6/Zion | Entered Proximity Caves 12809 | -5/Proximity Caves | Accompanied by 9 allies 13174 | -5/Proximity Caves | Attracted the attention of an 0b10 outpost 13356 | -5/Proximity Caves | Learned Factory garrison access intel 13417 | -5/Proximity Caves | Discovered new exit (range 12) 13427 | -5/Proximity Caves | Identified exit to Factory 13450 | -5/Proximity Caves | Entered Factory 13450 | -5/Factory | Accompanied by 2 allies 13450 | -5/Factory | Evolved 2 slots: Power x1, Propulsion x1 13453 | -5/Factory | Loaded intel: 28 terminal locations 13454 | -5/Factory | Loaded intel: 4 garrison access locations 13514 | -5/Factory | Retrieved Zion intel report: Trap Installations 13515 | -5/Factory | Zion Heavy squad teleported in 13529 | -5/Factory | Incoming investigation squad redirected 13634 | -5/Factory | Fabricated Cmb. Gravmag System (x2) 13807 | -5/Factory | Retrieved Zion intel report: Unaware Analyses 14159 | -5/Factory | Retrieved Zion intel report: Emergency Access 14160 | -5/Factory | Zion Heavy squad teleported in 14275 | -5/Factory | Found Prototype Processor 14275 | -5/Factory | Identified Exp. Targeting Computer 14284 | -5/Factory | Found Exp. Targeting Computer 14350 | -5/Factory | First assault squad dispatched 14379 | -5/Factory | Manually triggered Chute Trap 14379 | -5/Factory | Sucked down chute 14379 | -5/Factory | Entered Waste 14379 | -5/Waste | The area was eerily silent 14399 | -5/Waste | Found Adv. Powered Armor 14489 | -5/Waste | Discovered new exit (range 15) 14561 | -5/Waste | Identified exit to Factory 14562 | -5/Waste | Entered Factory 14639 | -5/Factory | Incoming investigation squad redirected 14674 | -5/Factory | Fabricated Cmb. Gravmag System? 14755 | -5/Factory | Retrieved Zion intel report: Unaware Analyses 14823 | -5/Factory | Discovered new exit (range 16) 14988 | -5/Factory | Discovered new exit (range 8) 14992 | -5/Factory | Identified exit to Factory 15089 | -5/Factory | Retrieved Zion intel report: Depthwide Sectors/0 15122 | -5/Factory | Zion Fire squad teleported in 15126 | -5/Factory | P-70 Sage assimilated allied 99-4WD(i) 15130 | -5/Factory | P-70 Sage assimilated allied 7D-Y9P(i) 15152 | -5/Factory | Retrieved Zion intel report: Guard Positions 15162 | -5/Factory | First assault squad dispatched 15178 | -5/Factory | Retrieved Zion intel report: Component Schematics 15267 | -5/Factory | Retrieved Zion intel report: Prototype Schematics 15276 | -5/Factory | Retrieved Zion intel report: Active Garrisons 15288 | -5/Factory | Discovered exit to Factory (range 20) 15341 | -5/Factory | Incoming assault squad redirected 15359 | -5/Factory | Incoming investigation squad redirected 15424 | -5/Factory | Retrieved Zion intel report: Depthwide Sectors/-1 15425 | -5/Factory | Zion Heavy squad teleported in 15435 | -5/Factory | Discovered exit to Factory (range 11) 15487 | -5/Factory | Incoming investigation squad redirected 15490 | -5/Factory | Garrison activated, responded to threat 15520 | -5/Factory | Fabricated Cmb. Gravmag System (x2) 15785 | -5/Factory | Incoming assault squad redirected 15816 | -5/Factory | Terminal network hard line cut 15897 | -5/Factory | Build established: Derelict-Scout 16232 | -5/Factory | Incoming assault squad redirected 16468 | -5/Factory | Incoming investigation squad redirected 16516 | -5/Factory | Build established: Scout 16645 | -5/Factory | Fabricated Exp. Sensor Array? 16937 | -5/Factory | Identified exit to Extension 16941 | -5/Factory | Entered Extension 16998 | -5/Extension | Build established: Machinist-Scout 17055 | -5/Extension | Rescued a captive Derelict 17085 | -5/Extension | Incoming investigation squad redirected 17227 | -5/Extension | Rescued a captive Derelict 17227 | -5/Extension | Rescued a captive Derelict 17297 | -5/Extension | Retrieved Zion intel report: Unaware Analyses 17298 | -5/Extension | Zion Fire squad teleported in 17308 | -5/Extension | Rescued a captive Derelict 17309 | -5/Extension | Rescued a captive Derelict 17405 | -5/Extension | Rescued A7 17484 | -5/Extension | Retrieved Zion intel report: Trap Installations 17485 | -5/Extension | Zion Fire squad teleported in 17541 | -5/Extension | First assault squad dispatched 17558 | -5/Extension | Incoming assault squad redirected 17569 | -5/Extension | Incoming assault squad redirected 17613 | -5/Extension | Retrieved Zion intel report: Depthwide Sectors/0 17614 | -5/Extension | Zion Fire squad teleported in 17667 | -5/Extension | Discovered exit to Factory (range 10) 17667 | -5/Extension | Discovered new exit (range 6) 17680 | -5/Extension | Identified exit to Cetus 17757 | -5/Extension | Entered Cetus 17757 | -5/Cetus | Accompanied by 14 allies (A7) 17762 | -5/Cetus | Acquired a Cetus Manufacturing Module code from A7 17777 | -5/Cetus | Spotted Cetus Guard 17777 | -5/Cetus | Spotted Cetus Guard 17789 | -5/Cetus | Spotted Cetus Guard 17792 | -5/Cetus | Spotted Cetus Guard 17795 | -5/Cetus | Allies destroyed Cetus Guard 17803 | -5/Cetus | Destroyed Cetus Guard 17805 | -5/Cetus | Allies destroyed Cetus Guard 17833 | -5/Cetus | Started Cetus Manufacturing Module 17858 | -5/Cetus | Manufactured an Enhanced Grunt 17883 | -5/Cetus | Manufactured an Enhanced Grunt 17892 | -5/Cetus | Build established: Commander-Scout 17908 | -5/Cetus | Manufactured an Enhanced Grunt 17933 | -5/Cetus | Manufactured an Enhanced Grunt 17958 | -5/Cetus | Manufactured an Enhanced Grunt 17976 | -5/Cetus | Discovered new exit (range 15) 18057 | -5/Cetus | Destroyed A7 18059 | -5/Cetus | Identified exit to Archives 18061 | -5/Cetus | Found Prototype Protection 18062 | -5/Cetus | Identified Med. Regenerative Plating 18066 | -5/Cetus | Extracted ID and sensor layout for unrecognized location from A7's data core 18091 | -5/Cetus | Entered Archives 18091 | -5/Archives | Accompanied by 14 allies 18226 | -5/Archives | Discovered new exit (range 15) 18928 | -5/Archives | Identified exit to Hub_04(d) 18938 | -5/Archives | Entered Hub_04(d) 18938 | -5/Hub_04(d) | Accompanied by 10 allies 18963 | -5/Hub_04(d) | Retrieved Zion intel report: Guard Positions 18974 | -5/Hub_04(d) | Retrieved Zion intel report: Unaware Analyses 18977 | -5/Hub_04(d) | Retrieved Zion intel report: Component Stockpiles 19024 | -5/Hub_04(d) | Retrieved Zion intel report: Unaware Analyses 19031 | -5/Hub_04(d) | Retrieved Zion intel report: Prototype Stockpiles 19043 | -5/Hub_04(d) | Retrieved Zion intel report: Main Access 19186 | -5/Hub_04(d) | Network Hub disabled 19199 | -5/Hub_04(d) | Entered Factory 19199 | -4/Factory | Accompanied by 4 allies 19199 | -4/Factory | Evolved 2 slots: Propulsion x1, Utility x1 19296 | -4/Factory | Zion Hacker squad teleported in 19400 | -4/Factory | Found Exp. Targeting Computer 19474 | -4/Factory | Zion Heavy squad teleported in 19498 | -4/Factory | Build established: Machinist-Scout 19500 | -4/Factory | Fabricated Cmb. Gravmag System? 19642 | -4/Factory | Retrieved Zion intel report: Active Garrisons 19655 | -4/Factory | Discovered new exit (range 10) 19660 | -4/Factory | Identified exit to Upper Caves 19664 | -4/Factory | Entered Upper Caves 19777 | -4/Upper Caves | Discovered new exit (range 12) 19783 | -4/Upper Caves | Identified exit to Upper Caves 19795 | -4/Upper Caves | Entered another Upper Caves area 19910 | -4/Upper Caves | Learned location of 1 exit from Factory 19910 | -4/Upper Caves | Learned Factory trap positions 19910 | -4/Upper Caves | Learned Factory stockpile data 19910 | -4/Upper Caves | Learned Extension security intel 19910 | -4/Upper Caves | Learned Factory terminal intel 20270 | -4/Upper Caves | Discovered new exit (range 15) 20283 | -4/Upper Caves | Identified exit to Zhirov 20284 | -4/Upper Caves | Entered Zhirov 20284 | -4/Zhirov | Discovered new exit (range 3) 20294 | -4/Zhirov | Met Zhirov 20304 | -4/Zhirov | Learned location of Quarantine (-3) 20304 | -4/Zhirov | Learned location of Testing (-2) 20304 | -4/Zhirov | Learned location of Command (-1) 20309 | -4/Zhirov | Zhirov requested help retrieving the SGEMP Prototype 20318 | -4/Zhirov | Found Alien Artifact 20318 | -4/Zhirov | Identified Integrated Reactor 20318 | -4/Zhirov | Installed Integrated Reactor, increased core energy generation (+10) 20328 | -4/Zhirov | Found Alien Artifact 20378 | -4/Zhirov | Identified exit to Proximity Caves 20380 | -4/Zhirov | Entered Proximity Caves 20645 | -3/Proximity Caves | Discovered new exit (range 11) 20650 | -3/Proximity Caves | Identified exit to Research 20651 | -3/Proximity Caves | Entered Research 20651 | -3/Research | Evolved 2 slots: Utility x2 20776 | -3/Research | Incoming investigation squad redirected 20997 | -3/Research | Retrieved Zion intel report: Depthwide Sectors/-1 21006 | -3/Research | Identified Transdimensional Reconstructor 21006 | -3/Research | Warped through subspace 21041 | -3/Research | Retrieved Zion intel report: Prototype Stockpiles 21048 | -3/Research | Discovered new exit (range 15) 21066 | -3/Research | Identified exit to Research 21070 | -3/Research | Discovered new exit (range 8) 21073 | -3/Research | Identified exit to Quarantine 21074 | -3/Research | Entered Quarantine 21147 | -3/Quarantine | Retrieved Zion intel report: Prototype Stockpiles 21170 | -3/Quarantine | Retrieved Zion intel report: Unaware Schematics 21176 | -3/Quarantine | Retrieved Zion intel report: Component Schematics 21179 | -3/Quarantine | Found Prototype Launcher 21179 | -3/Quarantine | Identified Adv. Micro-nuke Launcher 21186 | -3/Quarantine | Found Enh. Force Lance 21360 | -3/Quarantine | Retrieved Zion intel report: Active Terminals 21389 | -3/Quarantine | Retrieved Zion intel report: Depthwide Sectors/0 21415 | -3/Quarantine | Retrieved Zion intel report: Prototype Schematics 21461 | -3/Quarantine | Cryocooling Duct disabled 21476 | -3/Quarantine | Ambient heat levels rising (+20) 21476 | -3/Quarantine | Non-combat units ordered to evacuate 21625 | -3/Quarantine | Found Alien Impact Weapon 21677 | -3/Quarantine | Cryocooling Duct disabled 21692 | -3/Quarantine | Ambient heat levels rising (+20) 21692 | -3/Quarantine | Combat units ordered to evacuate 21746 | -3/Quarantine | Incoming investigation squad redirected 21759 | -3/Quarantine | Discovered exit to Research (range 18) 21792 | -3/Quarantine | Quarantine Guard activated 21862 | -3/Quarantine | Spotted Quarantine Guard 21870 | -3/Quarantine | Entered Research 21870 | -2/Research | Evolved 2 slots: Propulsion x1, Utility x1 21871 | -2/Research | Identified exit to Testing 22149 | -2/Research | Retrieved Zion intel report: Unaware Analyses 22150 | -2/Research | Zion Resource Resupply teleported in 22210 | -2/Research | Zion Light squad teleported in 22255 | -2/Research | Spotted B-90 Cyclops 22269 | -2/Research | Allies destroyed B-90 Cyclops 22576 | -2/Research | Discovered new exit (range 12) 22592 | -2/Research | Identified exit to Access 22602 | -2/Research | Garrison activated, responded to threat 22624 | -2/Research | Retrieved Zion intel report: Depthwide Sectors/0 22625 | -2/Research | Zion Experimental squad teleported in 22633 | -2/Research | Crushed by falling debris 22634 | -2/Research | System corruption reached 10% 22638 | -2/Research | Spotted B-90 Cyclops 22650 | -2/Research | Zion Heavy Resupply teleported in 22653 | -2/Research | First assault squad dispatched 22664 | -2/Research | Lost 3 parts (1p2n) 22680 | -2/Research | Incoming assault squad redirected 22708 | -2/Research | Crushed by falling debris 22712 | -2/Research | Crushed by falling debris 22713 | -2/Research | System corruption reached 30% 22720 | -2/Research | Entered Testing 22730 | -2/Testing | Found Prototype Processor 22730 | -2/Testing | Identified Spectral Analyzer 22743 | -2/Testing | Lost 4 parts (3u1w) 22756 | -2/Testing | Retrieved Zion intel report: Guard Positions 22786 | -2/Testing | Found Prototype Energy Gun 22787 | -2/Testing | Identified Warp Gun 22797 | -2/Testing | Found Prototype Device 22798 | -2/Testing | Identified Exp. Cloaking Device 22800 | -2/Testing | Found Exp. Cloaking Device 22810 | -2/Testing | Retrieved Zion intel report: Depthwide Sectors/-1 22818 | -2/Testing | Retrieved Zion intel report: Prototype Schematics 22947 | -2/Testing | Build established: Scout 22953 | -2/Testing | Incoming investigation squad redirected 22970 | -2/Testing | First assault squad dispatched 23057 | -2/Testing | Retrieved Zion intel report: Prototype Stockpiles 23066 | -2/Testing | Incoming assault squad redirected 23113 | -2/Testing | Spotted PH-HE4J6MJXEL 23261 | -2/Testing | Self-destructed Last Messages --------------- 23201_ Acquired 98 matter. 23220_ ALERT: Rogue bot located, Programmers report to Testing Zone 5H. 23220_ Enh. Nova Cannon destroyed. 23223_ Cld. Linear Gravjet destroyed. 23224_ System corrupted: Cmb. Gravmag System rejected. 23224_ Acquired 46 matter. 23226_ C-65 Expert calibrates the Resonance Scanner. 23226_ Acquired Antigrav System. 23231_ Acquired Cmb. Gravmag System. 23235_ C-65 Expert calibrates the Resonance Scanner. 23237_ K-01 Serf suffers critical hit (Burn). 23237_ K-01 Serf destroyed. 23238_ Acquired 30 matter. 23240_ JQHFI&938V&0Z#N,E32LC